bitfinex-derivatives/quotes_SOLF0:USTF0_20250509
["timestamp","ask_amount","ask_price","bid_price","bid_amount"]
[1746817373713,53.16,171.98,171.94,2.14]
[1746817374114,26.82,171.98,171.94,2.14]
[1746817374316,26.3,171.97,171.94,2.14]
[1746817375416,5.8152,171.96,171.94,2.14]
[1746817376821,32.1147,171.97,171.94,7.9556]
[1746817377010,26.82,171.98,171.94,2.14]
[1746817377420,32.6343,171.98,171.95,5.8152]
[1746817377620,32.6343,171.98,171.94,2.14]
[1746817378121,32.6343,171.98,171.95,5.8152]
[1746817379321,32.6343,171.98,171.94,2.14]
[1746817379521,5.8148,171.97,171.94,2.14]
[1746817380423,5.815,171.96,171.94,2.14]
[1746817380623,26.82,171.98,171.94,2.14]
[1746817380927,5.8153,171.95,171.94,2.14]
[1746817382020,5.8169,171.91,171.88,5.8176]
[1746817382222,26.28,171.93,171.86,1.834]
[1746817382418,26.3,171.92,171.85,1.0]
[1746817382620,5.8181,171.87,171.85,1.0]
[1746817382825,26.28,171.89,171.85,1.0]
[1746817383017,5.8183,171.86,171.85,1.0]
[1746817383223,26.28,171.89,171.85,1.0]
[1746817384224,26.28,171.89,171.87,5.8178]
[1746817384423,26.28,171.89,171.85,1.0]
[1746817385022,26.28,171.89,171.87,5.8178]
[1746817385222,26.28,171.89,171.85,1.0]
[1746817386121,26.28,171.89,171.87,5.818]
[1746817388423,26.28,171.89,171.88,5.8177]
[1746817388620,26.3,171.92,171.85,1.0]
[1746817389124,32.1154,171.95,171.91,5.8167]
[1746817389326,26.3,171.95,171.91,5.8167]
[1746817389632,5.816,171.94,171.9,5.8169]
[1746817390830,5.816,171.93,171.9,5.8169]
[1746817391626,5.8164,171.92,171.89,5.8172]
[1746817392833,5.8161,171.93,171.89,5.8172]
[1746817393530,5.8164,171.92,171.89,5.8172]
[1746817394632,5.8161,171.93,171.9,5.817]
[1746817395829,5.8164,171.92,171.9,5.817]
[1746817396133,5.8164,171.92,171.89,5.8172]
[1746817396327,5.8164,171.92,171.87,3.8696]
[1746817396527,5.8161,171.93,171.9,5.8168]
[1746817397131,5.8163,171.92,171.9,5.8168]
[1746817398234,5.8167,171.91,171.89,5.8172]
[1746817398628,26.3,171.95,171.88,5.8176]
[1746817398835,26.3,171.95,171.87,3.8696]
[1746817399236,26.3,171.95,171.92,5.8163]
[1746817399734,26.3,171.95,171.88,26.22]
[1746817399936,26.3,171.95,171.88,28.1203]
[1746817400434,5.8147,171.97,171.88,28.1203]
[1746817400840,5.815,171.96,171.93,5.8157]
[1746817401331,5.8147,171.97,171.94,5.8156]
[1746817402337,58.3344,171.98,171.95,5.8152]
[1746817402834,26.3,171.98,171.88,37.68813403]
[1746817403036,26.3,171.98,171.96,5.8148]
[1746817403433,26.3,172.01,171.92,26.18]
[1746817403633,26.3,172.01,171.93,3.7984]
[1746817404040,26.3,172.01,171.99,5.8137]
[1746817404435,26.16,172.03,171.94,1.8076]
[1746817404636,31.9728,172.03,171.99,5.8137]
[1746817404840,31.9728,172.03,171.94,1.8076]
[1746817405243,26.16,172.03,171.94,1.8076]
[1746817405740,26.16,172.03,171.95,26.16]
[1746817405942,26.16,172.03,171.96,26.14]
[1746817406834,52.3,172.06,172.03,5.8125]
[1746817407031,26.16,172.06,172.03,5.8125]
[1746817407535,26.16,172.06,171.96,26.14]
[1746817407936,26.16,172.06,171.97,11.49]
[1746817408136,534.6312,172.08,172.04,5.8121]
[1746817408337,528.82,172.08,172.0,26.12]
[1746817408639,528.82,172.08,172.01,3.7464]
[1746817409241,26.16,172.08,172.01,3.7464]
[1746817410339,31.971,172.08,172.04,5.8122]
[1746817410536,31.971,172.08,172.01,3.7464]
[1746817410537,35.72783403,172.08,172.01,3.7464]
[1746817410742,35.72783403,172.08,171.97,11.49]
[1746817411036,5.8123,172.04,172.0,5.8134]
[1746817411232,31.9523,172.04,172.0,5.8134]
[1746817412240,26.14,172.04,171.98,5.8141]
[1746817412636,26.14,172.04,171.97,11.49]
[1746817412834,5.8127,172.03,171.99,5.8137]
[1746817413038,26.14,172.04,171.99,5.8137]
[1746817413944,5.813,172.02,171.99,5.8137]
[1746817415246,5.8133,172.01,171.99,5.8137]
[1746817415447,26.14,172.04,171.97,11.49]
[1746817415647,27.973,172.04,171.97,11.49]
[1746817415848,5.813,172.02,171.98,5.814]
[1746817416146,27.973,172.04,171.98,5.814]
[1746817416345,5.8133,172.01,171.98,5.814]
[1746817417543,5.813,172.02,171.99,5.8139]
[1746817417848,27.973,172.04,171.97,11.49]
[1746817418345,31.9525,172.04,172.01,5.8131]
[1746817418947,5.8127,172.03,172.0,5.8135]
[1746817419248,26.14,172.04,171.97,11.49]
[1746817419549,5.8132,172.02,171.99,5.8138]
[1746817420548,5.8127,172.03,171.97,11.49]
[1746817421148,5.8127,172.03,172.0,5.8134]
[1746817422349,5.8127,172.03,172.01,5.8132]
[1746817423144,5.8127,172.03,172.0,5.8135]
[1746817423346,26.14,172.04,172.0,5.8135]
[1746817423543,52.22,172.04,172.0,5.8135]
[1746817423747,5.8128,172.03,172.0,5.8135]
[1746817423943,5.8128,172.03,172.01,5.8132]
[1746817424142,26.14,172.04,171.97,11.49]
[1746817424638,26.14,172.04,172.02,5.8127]
[1746817424845,26.14,172.04,171.97,11.49]
[1746817425046,52.22,172.07,171.98,1.9876]
[1746817425248,58.0316,172.07,172.03,5.8126]
[1746817425542,58.0316,172.07,171.98,1.9876]
[1746817426649,58.0316,172.07,172.03,5.8124]
[1746817426852,5.8117,172.06,172.03,5.8124]
[1746817427245,5.8117,172.06,172.04,5.8123]
[1746817427848,31.9514,172.07,172.04,5.8123]
[1746817428450,26.14,172.07,171.98,1.9876]
[1746817428950,31.9514,172.07,171.98,1.9876]
[1746817429847,31.9514,172.07,172.04,5.8122]
[1746817430050,26.14,172.07,172.04,5.8122]
[1746817430750,31.9513,172.07,172.04,5.8122]
[1746817431348,26.14,172.07,172.05,5.8119]
[1746817432854,31.9513,172.07,172.04,5.8121]
[1746817433043,31.9513,172.07,171.99,26.08]
[1746817433246,31.9513,172.07,172.04,5.8119]
[1746817433446,5.8113,172.07,172.04,5.8119]
[1746817433648,1.9439,172.1,172.01,11.49]
[1746817433846,9.56783403,172.08,172.01,11.49]
[1746817434047,5.812,172.05,172.02,5.8127]
[1746817434346,26.14,172.06,172.01,11.49]
[1746817434643,5.8126,172.03,172.01,11.49]
[1746817434849,26.14,172.06,172.01,11.49]
[1746817435149,5.8123,172.04,172.01,17.3032]
[1746817435753,5.8113,172.07,172.05,5.8119]
[1746817435952,31.8713,172.07,172.01,11.49]
[1746817436343,26.06,172.07,172.01,11.49]
[1746817436854,26.06,172.07,172.05,5.8118]
[1746817438654,26.06,172.07,172.06,5.8116]
[1746817438847,26.06,172.07,172.01,11.49]
[1746817439254,26.06,172.07,172.05,5.8118]
[1746817439554,26.06,172.07,172.01,11.49]
[1746817439755,26.06,172.07,172.01,15.4522]
[1746817440157,28.0039,172.1,172.01,15.4522]
[1746817440756,33.8144,172.1,172.07,5.8112]
[1746817441446,33.8144,172.1,172.01,15.4522]
[1746817441447,5.8106,172.09,172.06,5.8115]
[1746817442659,26.06,172.13,172.01,372.4522]
[1746817442852,52.14,172.13,172.02,1.9211]
[1746817443053,5.8096,172.12,172.02,1.9211]
[1746817444059,26.06,172.13,172.02,1.9211]
[1746817444357,155.68030521,172.15,172.02,1.9211]
[1746817444560,5.8094,172.13,172.02,1.9211]
[1746817445258,52.12,172.14,172.02,1.9211]
[1746817445758,5.8099,172.11,172.02,1.9211]
[1746817445960,52.12,172.14,172.02,1.9211]
[1746817446459,5.8097,172.12,172.02,1.9211]
[1746817446762,52.12,172.14,172.02,1.9211]
[1746817447060,52.12,172.14,172.03,11.6252]
[1746817447261,52.12,172.14,172.04,52.12]
[1746817447555,31.8689,172.14,172.11,5.8097]
[1746817450060,26.06,172.17,172.06,9.56783403]
[1746817450259,26.06,172.17,172.07,3.8797]
[1746817450562,26.06,172.17,172.08,52.12]
[1746817451060,31.8679,172.17,172.14,5.8087]
[1746817451256,26.06,172.17,172.08,52.12]
[1746817452062,31.868,172.17,172.08,52.12]
[1746817452458,26.06,172.17,172.08,52.12]
[1746817452661,31.868,172.17,172.13,5.809]
[1746817453363,26.06,172.17,172.08,409.12]
[1746817455063,31.8681,172.17,172.14,5.8089]
[1746817455263,31.8681,172.17,172.08,409.12]
[1746817455965,26.06,172.17,172.08,409.12]
[1746817456168,26.06,172.17,172.08,411.1073]
[1746817457366,31.8682,172.17,172.08,411.1073]
[1746817457866,31.8682,172.17,172.13,5.809]
[1746817458165,31.8682,172.17,172.08,411.1073]
[1746817458666,5.8083,172.16,172.08,411.1073]
[1746817459267,31.868,172.17,172.08,411.1073]
[1746817459666,31.868,172.17,172.14,5.8087]
[1746817460668,5.8082,172.16,172.14,5.8087]
[1746817460866,26.06,172.17,172.08,385.0473]
[1746817461066,26.06,172.17,172.08,411.1073]
[1746817461370,5.8089,172.15,172.11,5.8097]
[1746817461568,26.06,172.17,172.08,358.9873]
[1746817461774,26.06,172.17,172.03,9.56783403]
[1746817461775,9.56783403,172.12,172.03,52.1]
[1746817461966,5.8109,172.08,172.05,5.8116]
[1746817462168,52.1,172.11,172.01,37.55]
[1746817462664,9.56783403,172.09,172.01,11.49]
[1746817463173,5.8125,172.04,172.01,17.3032]
[1746817463368,5.8125,172.04,172.01,5.8132]
[1746817464574,52.1,172.07,171.99,26.06]
[1746817465072,1.01171614,172.17,171.99,1388.62783403]
[1746817465265,9.56783403,172.21,172.06,9.56783403]
[1746817465574,5.8069,172.2,172.07,58.0304]
[1746817466071,5.8069,172.2,172.14,5.8087]
[1746817466272,26.12,172.19,172.07,415.0304]
[1746817466575,26.1,172.18,172.07,415.0304]
[1746817466775,26.1,172.18,172.16,5.8079]
[1746817467173,26.1,172.18,172.11,26.1]
[1746817467879,26.1,172.18,172.17,5.8079]
[1746817470780,17.45294182,172.29,172.22,5.8062]
[1746817470970,57.9652,172.25,172.22,5.8062]
[1746817472280,31.9052,172.25,172.22,5.8062]
[1746817472481,57.9652,172.25,172.22,5.8062]
[1746817473078,26.1,172.25,172.16,3.7477]
[1746817473375,26.1,172.25,172.16,5.6545]
[1746817473573,26.1,172.25,172.24,5.8055]
[1746817476986,26.08,172.29,172.2,26.08]
[1746817477188,26.08,172.3,172.2,26.08]
[1746817477387,26.08,172.3,172.28,5.804]
[1746817477982,26.08,172.3,172.27,5.8045]
[1746817478183,26.08,172.3,172.23,26.04]
[1746817478383,5.8039,172.29,172.23,26.04]
[1746817479086,5.8039,172.29,172.25,5.805]
[1746817479988,5.8039,172.29,172.26,5.8048]
[1746817480688,57.9236,172.3,172.27,5.8045]
[1746817480898,52.12,172.3,172.23,26.04]
[1746817481195,57.9235,172.3,172.27,5.8043]
[1746817482385,52.12,172.3,172.23,26.04]
[1746817482895,5.8042,172.28,172.25,5.8051]
[1746817483395,5.8048,172.27,172.23,5.8056]
[1746817483797,26.08,172.26,172.23,5.8056]
[1746817484493,31.885,172.26,172.23,5.8056]
[1746817484796,26.08,172.26,172.22,5.8061]
[1746817485293,5.8053,172.25,172.22,5.8061]
[1746817486796,26.08,172.26,172.18,26.04]
[1746817486797,5.8056,172.24,172.21,5.8064]
[1746817487397,5.806,172.23,172.2,5.8068]
[1746817489499,52.12,172.26,172.19,5.8071]
[1746817489500,5.8064,172.22,172.19,5.8071]
[1746817489686,26.08,172.22,172.16,5.6545]
[1746817489887,26.08,172.22,172.16,3.7477]
[1746817490087,5.8067,172.21,172.18,5.8074]
[1746817490594,5.8067,172.21,172.16,3.7477]
[1746817491497,31.8863,172.22,172.19,5.8072]
[1746817491698,26.08,172.22,172.16,3.7477]
[1746817492598,26.08,172.26,172.16,29.8277]
[1746817492797,26.08,172.26,172.17,1.9631]
[1746817492996,26.08,172.26,172.18,26.04]
[1746817493197,26.08,172.26,172.25,5.8052]
[1746817495099,503.1855,172.34,172.18,383.04]
[1746817495100,26.08,172.29,172.27,5.8045]
[1746817497803,26.08,172.29,172.28,5.8042]
[1746817500308,26.08,172.29,172.23,3.8313]
[1746817500609,5.8044,172.28,172.23,3.8313]
[1746817500912,5.8044,172.28,172.25,5.8049]
[1746817501616,26.08,172.29,172.23,3.8313]
[1746817502915,31.884,172.29,172.23,3.8313]
[1746817503115,26.08,172.29,172.23,3.8313]
[1746817503713,26.02,172.32,172.24,26.02]
[1746817504015,26.02,172.32,172.24,384.8716]
[1746817504415,26.02,172.35,172.31,5.8032]
[1746817504809,5.8022,172.34,172.31,5.8032]
[1746817505008,26.02,172.35,172.31,5.8032]
[1746817505209,26.02,172.35,172.26,26.04]
[1746817505414,31.8221,172.35,172.26,26.04]
[1746817505614,31.8221,172.35,172.31,5.8028]
[1746817505816,82.61357893,172.4,172.31,357.0]
[1746817506209,5.8005,172.39,172.31,357.0]
[1746817506410,108.65357893,172.4,172.31,357.0]
[1746817506920,114.45367893,172.4,172.31,357.0]
[1746817507217,108.65357893,172.4,172.34,5.8019]
[1746817507418,5.8008,172.39,172.34,5.8019]
[1746817507609,108.65357893,172.4,172.34,5.8019]
[1746817507914,5.801,172.38,172.35,5.8018]
[1746817508107,108.65357893,172.4,172.35,5.8018]
[1746817508312,108.65357893,172.4,172.31,357.0]
[1746817508512,114.45377893,172.4,172.31,357.0]
[1746817508720,114.45377893,172.4,172.37,5.8011]
[1746817508921,26.04,172.4,172.37,5.8011]
[1746817509121,26.02,172.4,172.3,26.02]
[1746817509416,26.02,172.41,172.31,1.9924]
[1746817509614,26.02,172.41,172.32,26.02]
[1746817510014,26.02,172.41,172.39,5.8004]
[1746817510216,26.02,172.42,172.34,26.02]
[1746817511016,26.02,172.42,172.31,358.9924]
[1746817511315,26.02,172.42,172.29,52.08]
[1746817511516,5.8014,172.37,172.33,5.8024]
[1746817511818,52.1,172.37,172.29,26.06]
[1746817512122,52.1,172.37,172.34,5.8019]
[1746817512421,52.1,172.37,172.29,26.06]
[1746817512612,57.9012,172.37,172.34,5.802]
[1746817513020,52.1,172.37,172.29,26.06]
[1746817513213,52.1,172.37,172.3,5.8032]
[1746817513412,52.1,172.37,172.26,5.6448]
[1746817513719,5.8028,172.32,172.26,5.6448]
[1746817514616,5.8028,172.32,172.26,3.7276]
[1746817514818,57.8826,172.33,172.26,3.7276]
[1746817515024,57.8826,172.33,172.29,5.8035]
[1746817515324,52.08,172.33,172.29,5.8035]
[1746817515819,5.8029,172.32,172.29,5.8035]
[1746817516424,57.8826,172.33,172.29,5.8035]
[1746817517724,5.8029,172.32,172.29,5.8035]
[1746817517925,5.8029,172.32,172.28,5.804]
[1746817518527,5.8029,172.32,172.29,5.8038]
[1746817518827,57.8826,172.33,172.26,1.842]
[1746817519027,57.8826,172.33,172.29,5.8035]
[1746817519227,52.08,172.33,172.26,1.842]
[1746817520126,57.8827,172.33,172.26,1.842]
[1746817520830,5.803,172.32,172.29,5.8036]
[1746817522028,52.08,172.33,172.17,357.0]
[1746817522230,52.08,172.33,172.16,31.6444]
[1746817522524,21.06634182,172.36,172.17,15.25314182]
[1746817522726,52.16,172.35,172.21,15.25314182]
[1746817522927,26.02,172.35,172.22,56.0598]
[1746817523226,26.02,172.35,172.25,15.25314182]
[1746817523430,26.02,172.37,172.26,52.18]
[1746817523623,31.8212,172.37,172.33,5.8023]
[1746817523824,26.02,172.37,172.33,5.8023]
[1746817524430,26.02,172.37,172.26,409.18]
[1746817524730,26.02,172.37,172.26,52.18]
[1746817524928,5.802,172.35,172.31,5.8029]
[1746817525433,5.8024,172.34,172.3,5.8034]
[1746817525628,31.9824,172.34,172.3,5.8034]
[1746817525828,26.18,172.34,172.26,52.18]
[1746817526830,31.9822,172.34,172.26,52.18]
[1746817527725,26.18,172.34,172.26,52.18]
[1746817527929,26.18,172.34,172.32,5.8026]
[1746817528334,26.18,172.34,172.26,52.18]
[1746817528730,26.18,172.34,172.3,1.0]
[1746817529232,26.18,172.34,172.31,5.8031]
[1746817529531,26.16,172.4,172.3,384.16]
[1746817529731,1.9244,172.41,172.37,5.8009]
[1746817529932,26.16,172.4,172.31,5.4371]
[1746817530431,26.16,172.4,172.38,5.8007]
[1746817530633,58.1201,172.41,172.31,5.4371]
[1746817530933,58.1201,172.41,172.37,5.8009]
[1746817531134,58.1201,172.41,172.31,5.4371]
[1746817531533,3.8717,172.47,172.31,362.4371]
[1746817531738,53.33323313,172.46,172.31,362.4371]
[1746817532029,52.3,172.46,172.31,362.4371]
[1746817532236,52.3,172.46,172.42,5.7994]
[1746817532429,52.3,172.46,172.36,26.16]
[1746817532630,52.3,172.46,172.41,5.7997]
[1746817532831,52.3,172.46,172.36,26.16]
[1746817533744,31.9187,172.45,172.41,5.7996]
[1746817535337,5.7989,172.44,172.41,5.7996]
[1746817535537,26.12,172.45,172.41,5.7996]
[1746817535836,31.9187,172.45,172.41,5.7996]
[1746817536037,26.12,172.45,172.41,5.7996]
[1746817536336,26.12,172.45,172.4,5.8]
[1746817536537,5.799,172.44,172.36,26.16]
[1746817537035,5.7994,172.43,172.36,26.16]
[1746817537228,5.7994,172.43,172.39,5.8002]
[1746817537634,26.12,172.45,172.36,26.16]
[1746817537838,26.12,172.45,172.34,357.0]
[1746817538340,5.7997,172.42,172.38,5.8006]
[1746817538740,26.12,172.45,172.38,5.8006]
[1746817539739,5.7999,172.41,172.38,5.8006]
[1746817539943,5.7999,172.41,172.34,357.0]
[1746817539944,26.08,172.41,172.34,357.0]
[1746817540340,5.8003,172.4,172.36,5.8012]
[1746817540540,26.08,172.41,172.36,5.8012]
[1746817540941,5.8007,172.39,172.36,5.8012]
[1746817541645,26.08,172.41,172.35,5.8015]
[1746817541939,26.08,172.41,172.33,26.16]
[1746817542143,26.08,172.41,172.36,5.8013]
[1746817542648,5.8007,172.39,172.36,5.8013]
[1746817543247,5.8009,172.38,172.35,5.8017]
[1746817543747,5.8006,172.39,172.36,5.8015]
[1746817544145,26.08,172.41,172.33,26.16]
[1746817544348,5.8008,172.39,172.35,5.8015]
[1746817545451,5.8008,172.39,172.36,5.8014]
[1746817545745,5.8008,172.39,172.31,5.4371]
[1746817545949,5.8008,172.38,172.31,5.4371]
[1746817546247,26.08,172.41,172.31,5.4371]
[1746817546451,5.8019,172.35,172.3,384.16]
[1746817546648,5.8019,172.35,172.3,27.16]
[1746817546845,5.8019,172.35,172.32,5.8026]
[1746817547755,5.8019,172.35,172.33,5.8025]
[1746817548654,5.8019,172.35,172.32,5.8027]
[1746817548952,5.8022,172.34,172.3,1.0]
[1746817549254,5.8022,172.34,172.31,5.8028]
[1746817549457,5.8025,172.33,172.3,1.0]
[1746817549652,26.02,172.36,172.3,1.0]
[1746817550654,5.8023,172.34,172.31,5.803]
[1746817551853,5.8023,172.34,172.3,1.0]
[1746817551854,5.8026,172.33,172.3,1.0]
[1746817552347,5.8023,172.34,172.31,5.8031]
[1746817553954,5.8025,172.33,172.31,5.8031]
[1746817554358,5.8025,172.33,172.3,6.8034]
[1746817554559,5.8029,172.32,172.3,1.0]
[1746817554857,26.16,172.33,172.3,1.0]
[1746817555156,26.02,172.32,172.3,6.8034]
[1746817555656,26.02,172.32,172.31,5.8032]
[1746817556658,9.51627535,172.38,172.31,5.8032]
[1746817556864,52.04,172.37,172.3,1.0]
[1746817557357,5.8019,172.35,172.3,1.0]
[1746817557860,5.8019,172.35,172.32,5.8026]
[1746817558256,5.8022,172.34,172.3,1.0]
[1746817558456,5.8022,172.34,172.31,5.803]
[1746817559363,31.8419,172.35,172.32,5.8027]
[1746817559560,26.02,172.37,172.3,1.0]
[1746817559760,26.02,172.35,172.3,1.0]
[1746817560761,26.02,172.37,172.3,1.0]
[1746817560955,26.02,172.37,172.3,10.51627535]
[1746817561156,31.8206,172.39,172.31,1.8524]
[1746817561659,31.8206,172.39,172.36,5.8013]
[1746817561861,31.8206,172.39,172.31,1.8524]
[1746817562057,31.8206,172.39,172.36,5.8012]
[1746817562363,31.8206,172.39,172.31,1.8524]
[1746817562564,26.02,172.39,172.31,1.8524]
[1746817562762,26.02,172.39,172.37,5.801]
[1746817563769,31.8205,172.39,172.36,5.8013]
[1746817564264,31.8205,172.39,172.31,1.8524]
[1746817565467,31.8205,172.39,172.36,5.8013]
[1746817565863,26.02,172.39,172.31,1.8524]
[1746817566069,26.02,172.39,172.37,5.8011]
[1746817566864,31.8202,172.4,172.37,5.8011]
[1746817567068,26.02,172.39,172.37,5.8011]
[1746817567369,26.02,172.39,172.38,5.8008]
[1746817568061,26.02,172.39,172.31,1.8524]
[1746817568672,5.8006,172.39,172.36,5.8015]
[1746817568864,31.8206,172.39,172.36,5.8015]
[1746817569671,26.02,172.39,172.31,1.8524]
[1746817570064,26.02,172.39,172.38,5.8008]
[1746817570465,26.02,172.39,172.36,5.8014]
[1746817570668,26.02,172.39,172.31,1.8524]
[1746817570869,52.04,172.4,172.31,1.8524]
[1746817572070,5.8006,172.39,172.36,5.8013]
[1746817572273,52.04,172.4,172.31,1.8524]
[1746817572772,5.801,172.38,172.35,5.8017]
[1746817573074,52.04,172.4,172.31,1.8524]
[1746817574275,52.04,172.4,172.35,5.8015]
[1746817574474,52.04,172.4,172.31,1.8524]
[1746817575375,52.04,172.4,172.3,1.0]
[1746817575779,54.0253,172.4,172.3,1.0]
[1746817576075,9.51627535,172.38,172.3,1.0]
[1746817576276,5.8027,172.33,172.3,1.0]
[1746817576577,26.04,172.33,172.3,1.0]
[1746817576777,26.04,172.33,172.31,5.8029]
[1746817576972,26.04,172.33,172.3,1.0]
[1746817578078,26.04,172.33,172.31,5.8031]
[1746817579473,26.0,172.34,172.32,5.8027]
[1746817579974,26.0,172.34,172.31,5.8031]
[1746817580474,26.0,172.34,172.3,1.0]
[1746817581176,5.8025,172.33,172.3,1.0]
[1746817581678,5.8029,172.32,172.3,1.0]
[1746817583076,5.8029,172.32,172.3,6.8034]
[1746817584977,5.8029,172.32,172.3,1.0]
[1746817586073,26.0,172.34,172.3,1.0]
[1746817586772,5.803,172.32,172.3,1.0]
[1746817586974,5.803,172.32,172.3,6.8035]
[1746817587274,26.0,172.34,172.3,1.0]
[1746817587481,9.51627535,172.38,172.3,1.0]
[1746817587787,52.04,172.37,172.3,1.0]
[1746817588073,26.02,172.37,172.34,5.802]
[1746817588277,31.8215,172.37,172.34,5.802]
[1746817588978,26.02,172.37,172.3,1.0]
[1746817589178,26.02,172.39,172.3,27.02]
[1746817589679,5.801,172.38,172.35,5.8016]
[1746817590280,5.801,172.38,172.36,5.8014]
[1746817591185,31.8206,172.39,172.36,5.8014]
[1746817591482,52.04,172.4,172.31,26.02]
[1746817592684,31.8202,172.4,172.37,5.8009]
[1746817593185,31.8202,172.4,172.31,26.02]
[1746817593384,26.02,172.4,172.31,26.02]
[1746817593778,5.8005,172.39,172.35,5.8015]
[1746817593979,5.8005,172.39,172.31,26.02]
[1746817594284,31.8202,172.4,172.37,5.8011]
[1746817594979,26.02,172.4,172.31,357.0]
[1746817595485,5.8014,172.37,172.34,5.802]
[1746817595684,26.02,172.38,172.31,357.0]
[1746817596484,31.821,172.38,172.35,5.8016]
[1746817596684,5.801,172.38,172.35,5.8016]
[1746817597380,26.02,172.4,172.32,26.02]
[1746817597785,26.02,172.41,172.32,26.02]
[1746817598989,26.02,172.43,172.33,9.51627535]
[1746817599183,26.02,172.43,172.34,26.02]
[1746817599387,26.02,172.43,172.34,29.8498]
[1746817599582,26.02,172.43,172.41,5.7996]
[1746817599783,26.02,172.43,172.34,29.8498]
[1746817599984,26.0,172.46,172.35,1.937]
[1746817600187,26.02,172.45,172.36,26.02]
[1746817600684,26.02,172.45,172.42,5.7992]
[1746817601484,31.8185,172.45,172.42,5.7992]
[1746817603785,5.7991,172.44,172.41,5.7996]
[1746817603989,26.02,172.45,172.36,26.02]
[1746817604394,26.02,172.45,172.42,5.7994]
[1746817604989,31.8188,172.45,172.42,5.7994]
[1746817605589,5.7988,172.44,172.42,5.7994]
[1746817605783,26.02,172.45,172.42,5.7994]
[1746817606288,31.8187,172.45,172.42,5.7994]
[1746817609092,26.02,172.45,172.36,26.02]
[1746817609594,5.7989,172.44,172.41,5.7995]
[1746817610091,31.8186,172.45,172.42,5.7994]
[1746817610294,26.02,172.45,172.42,5.7994]
[1746817610891,26.02,172.45,172.4,5.7999]
[1746817611490,5.7993,172.43,172.38,11.28]
[1746817611687,26.02,172.45,172.38,11.28]
[1746817611890,35.53627535,172.45,172.38,11.28]
[1746817612091,5.6485,172.44,172.38,17.0807]
[1746817612291,5.6485,172.44,172.38,11.28]
[1746817612491,5.8005,172.39,172.38,11.28]
[1746817612891,52.02,172.4,172.3,1.0]
[1746817613088,5.8017,172.36,172.33,5.8025]
[1746817613697,52.02,172.4,172.3,1.0]
[1746817614533,5.801,172.38,172.35,5.8017]
[1746817614832,52.02,172.4,172.35,5.8017]
[1746817615030,52.02,172.4,172.3,1.0]
[1746817615221,9.51627535,172.36,172.3,1.0]
[1746817615425,52.02,172.35,172.3,1.0]
[1746817615816,5.8024,172.34,172.31,5.8029]
[1746817616023,52.02,172.35,172.31,5.8029]